[Event "DVM U10 2024"]
[Site "Duesseldorf"]
[Date "2024.12.29"]
[Round "7"]
[White "Belyakov, Konstantin"]
[Black "Fischer, Emil Fiete"]
[Result "0-1"]
[ECO "C45"]
[WhiteElo "1251"]
[BlackElo "1050"]
[Annotator "NA"]
[PlyCount "168"]
[EventDate "2024.12.23"]
[EventType "team-tourn"]
[EventRounds "7"]
[EventCountry "GER"]
[SourceTitle "playchess.com"]
[Source "ChessBase"]
[SourceQuality "1"]
[TimeControl "3300+5"]

1. e4 {[%emt 0:00:02]} e5 {[%emt 0:00:13]} 2. Nf3 {[%emt 0:00:05]} Nc6 {[%emt 0:00:20]} 3. d4 {[%emt 0:00:08]} exd4 {[%emt 0:00:06]} 4. Nxd4 {[%emt 0:00:02]} Bc5 {[%emt 0:00:20]} 5. Be3 {[%emt 0:00:05]} Qf6 {[%emt 0:00:12]} 6. c3 {[%emt 0:00:58]} Bb6 {[%emt 0:00:07]} 7. Na3 {[%emt 0:00:41]} Nge7 {[%emt 0:00:25]} 8. Qd2 {[%emt 0:00:28]} O-O {[%emt 0:00:11]} 9. Nxc6 {[%emt 0:00:52]} dxc6 {[%emt 0:00:10]} 10. Bd3 {[%emt 0:00:25]} Be6 {[%emt 0:00:21]} 11. O-O {[%emt 0:00:48]} Qe5 {[%emt 0:00:15]} 12. Bf4 {[%emt 0:00:42]} Qf6 {[%emt 0:00:55]} 13. g3 {[%emt 0:00:44]} Bh3 {[%emt 0:00:12]} 14. Rfe1 {[%emt 0:00:34]} Rfe8 {[%emt 0:00:54]} 15. Qe2 {[%emt 0:01:05]} Nd5 {[%emt 0:01:08]} 16. Bd2 {[%emt 0:01:53]} Qd6 {[%emt 0:01:17]} 17. Qf3 {[%emt 0:02:52]} Ne7 {[%emt 0:00:27]} 18. Rad1 {[%emt 0:01:28]} Ng6 {[%emt 0:00:42]} 19. Bc2 {[%emt 0:01:54]} Ne5 {[%emt 0:00:26]} 20. Qf4 {[%emt 0:02:32]} Bg4 {[%emt 0:03:09]} 21. Rc1 {[%emt 0:01:16]} Nf3+ {[%emt 0:00:20]} 22. Kg2 {[%emt 0:00:36]} Nxe1+ {[%emt 0:00:35]} 23. Rxe1 {[%emt 0:00:14]} Qxf4 {[%emt 0:00:15]} 24. Bxf4 {[%emt 0:00:08]} f5 {[%emt 0:00:34]} 25. Bb3+ {[%emt 0:00:44]} Kh8 {[%emt 0:00:12]} 26. f3 {[%emt 0:01:22]} Bh5 {[%emt 0:00:28]} 27. e5 {[%emt 0:00:13]} Bg6 {[%emt 0:01:40]} 28. Nc4 {[%emt 0:00:34]} Bc5 {[%emt 0:00:29]} 29. e6 {[%emt 0:00:33]} Bf7 {[%emt 0:00:22]} 30. Re5 {[%emt 0:02:12]} Bd6 {[%emt 0:00:23]} 31. Nxd6 {[%emt 0:00:16]} cxd6 {[%emt 0:00:08]} 32. Re3 {[%emt 0:00:28]} Bg8 {[%emt 0:00:38]} 33. Bxd6 {[%emt 0:01:42]} Rad8 {[%emt 0:00:10]} 34. Ba3 {[%emt 0:00:39]} Rd2+ {[%emt 0:00:23]} 35. Kh3 {[%emt 0:00:06]} b6 {[%emt 0:01:35]} 36. Re5 {[%emt 0:01:34]} g6 {[%emt 0:00:45]} 37. c4 {[%emt 0:01:06]} h6 {[%emt 0:00:18]} 38. Bb4 {[%emt 0:00:18]} Rdd8 {[%emt 0:01:19]} 39. c5 {[%emt 0:00:53]} b5 {[%emt 0:00:44]} 40. Ba5 {[%emt 0:01:22]} Rb8 {[%emt 0:00:19]} 41. Bc7 {[%emt 0:00:34]} Rb7 {[%emt 0:00:14]} 42. Bd6 {[%emt 0:00:12]} a5 {[%emt 0:01:40]} 43. a3 {[%emt 0:00:46]} a4 {[%emt 0:00:10]} 44. Ba2 {[%emt 0:00:10]} Rbe7 {[%emt 0:01:05]} 45. Bxe7 {[%emt 0:00:32]} Rxe7 {[%emt 0:00:11]} 46. f4 {[%emt 0:00:35]} Kg7 {[%emt 0:00:12]} 47. Kg2 {[%emt 0:00:09]} Kf6 {[%emt 0:00:13]} 48. Kf3 {[%emt 0:00:34]} Bxe6 {[%emt 0:00:10]} 49. Bb1 {[%emt 0:00:48]} Bd5+ {[%emt 0:00:13]} 50. Ke3 {[%emt 0:00:10]} Rxe5+ {[%emt 0:00:13]} 51. fxe5+ {[%emt 0:00:08]} Kxe5 {[%emt 0:00:09]} 52. Bd3 {[%emt 0:01:23]} Be4 {[%emt 0:00:30]} 53. Bxe4 {[%emt 0:00:39]} fxe4 {[%emt 0:00:06]} 54. h3 {[%emt 0:00:13]} g5 {[%emt 0:00:12]} 55. h4 {[%emt 0:01:01]} g4 {[%emt 0:00:29]} 56. h5 {[%emt 0:00:14]} Kd5 {[%emt 0:00:14]} 57. Kf4 {[%emt 0:00:29]} Kd4 {[%emt 0:00:08]} 58. Kxg4 {[%emt 0:00:16]} e3 {[%emt 0:00:06]} 59. Kf5 {[%emt 0:00:09]} e2 {[%emt 0:00:11]} 60. g4 {[%emt 0:00:06]} e1=Q {[%emt 0:00:57]} 61. g5 {[%emt 0:00:05]} hxg5 {[%emt 0:00:46]} 62. Kxg5 {[%emt 0:00:09]} Qh1 {[%emt 0:00:09]} 63. h6 {[%emt 0:00:12]} Kxc5 {[%emt 0:00:06]} 64. Kg6 {[%emt 0:00:07]} Kc4 {[%emt 0:00:09]} 65. h7 {[%emt 0:00:07]} Kb3 {[%emt 0:00:05]} 66. Kg7 {[%emt 0:00:09]} Kxb2 {[%emt 0:00:07]} 67. h8=Q {[%emt 0:00:09]} Qxh8+ {[%emt 0:00:14]} 68. Kxh8 {[%emt 0:00:06]} c5 {[%emt 0:00:23]} 69. Kg7 {[%emt 0:00:04]} c4 {[%emt 0:00:07]} 70. Kf6 {[%emt 0:00:04]} c3 {[%emt 0:00:11]} 71. Ke5 {[%emt 0:00:05]} c2 {[%emt 0:00:24]} 72. Kd4 {[%emt 0:00:05]} c1=Q {[%emt 0:00:12]} 73. Kd3 {[%emt 0:00:06]} Qc2+ {[%emt 0:00:22]} 74. Kd4 {[%emt 0:00:05]} Qc3+ {[%emt 0:00:12]} 75. Kd5 {[%emt 0:00:07]} Qc4+ {[%emt 0:00:11]} 76. Kd6 {[%emt 0:00:08]} Kc3 {[%emt 0:00:14]} 77. Ke5 {[%emt 0:00:05]} Qd4+ {[%emt 0:00:11]} 78. Kf5 {[%emt 0:00:06]} Qe3 {[%emt 0:00:14]} 79. Kf6 {[%emt 0:00:07]} Qe4 {[%emt 0:00:15]} 80. Kg5 {[%emt 0:00:06]} Qf3 {[%emt 0:00:11]} 81. Kg6 {[%emt 0:00:08]} Qf4 {[%emt 0:00:10]} 82. Kg7 {[%emt 0:00:06]} Qf5 {[%emt 0:00:09]} 83. Kg8 {[%emt 0:00:12]} Qf6 {[%emt 0:00:08]} 84. Kh7 {[%emt 0:00:12]} Qg5 {[%emt 0:00:11]} 0-1

[Event "DVM U10 2024"]
[Site "Duesseldorf"]
[Date "2024.12.29"]
[Round "7"]
[White "Frikel, Konstantin"]
[Black "von Gehlen, Samuel"]
[Result "1-0"]
[ECO "B14"]
[WhiteElo "1199"]
[BlackElo "1459"]
[Annotator "NA"]
[PlyCount "107"]
[EventDate "2024.12.23"]
[EventType "team-tourn"]
[EventRounds "7"]
[EventCountry "GER"]
[SourceTitle "playchess.com"]
[Source "ChessBase"]
[SourceQuality "1"]
[TimeControl "3300+5"]

1. e4 {[%emt 0:00:04]} c6 {[%emt 0:00:03]} 2. d4 {[%emt 0:00:04]} d5 {[%emt 0:00:05]} 3. exd5 {[%emt 0:00:08]} cxd5 {[%emt 0:00:04]} 4. c4 {[%emt 0:00:07]} Nf6 {[%emt 0:00:09]} 5. Nc3 {[%emt 0:00:25]} Nc6 {[%emt 0:00:33]} 6. Bg5 {[%emt 0:00:13]} e6 {[%emt 0:01:43]} 7. Nf3 {[%emt 0:00:07]} Be7 {[%emt 0:00:29]} 8. Bd3 {[%emt 0:00:11]} Qb6 {[%emt 0:00:14]} 9. Bxf6 {[%emt 0:01:30]} Bxf6 {[%emt 0:00:06]} 10. cxd5 {[%emt 0:00:12]} Qxb2 {[%emt 0:01:01]} 11. Rc1 {[%emt 0:01:06]} Nxd4 {[%emt 0:00:18]} 12. Nxd4 {[%emt 0:04:20]} Bxd4 {[%emt 0:00:09]} 13. Bb5+ {[%emt 0:02:26]} Ke7 {[%emt 0:01:00]} 14. d6+ {[%emt 0:00:53]} Kf8 {[%emt 0:00:35]} 15. O-O {[%emt 0:02:00]} Bxc3 {[%emt 0:01:31]} 16. d7 {[%emt 0:00:18]} Bxd7 {[%emt 0:00:17]} 17. Qxd7 {[%emt 0:00:21]} g6 {[%emt 0:00:55]} 18. Qxb7 {[%emt 0:01:21]} Kg7 {[%emt 0:00:23]} 19. Qc6 {[%emt 0:02:48]} Rhc8 {[%emt 0:00:55]} 20. Qa6 {[%emt 0:02:26]} Rab8 {[%emt 0:01:11]} 21. Bd3 {[%emt 0:01:39]} Qb7 {[%emt 0:01:00]} 22. Qxb7 {[%emt 0:00:20]} Rxb7 {[%emt 0:00:14]} 23. Ba6 {[%emt 0:00:12]} Rbc7 {[%emt 0:01:07]} 24. Bxc8 {[%emt 0:00:16]} Rxc8 {[%emt 0:00:10]} 25. Rfd1 {[%emt 0:00:37]} Rc7 {[%emt 0:00:19]} 26. Rd3 {[%emt 0:00:44]} Be5 {[%emt 0:00:28]} 27. Rxc7 {[%emt 0:00:05]} Bxc7 {[%emt 0:00:06]} 28. Kf1 {[%emt 0:00:20]} e5 {[%emt 0:00:46]} 29. Rd7 {[%emt 0:00:30]} Bb6 {[%emt 0:00:12]} 30. f3 {[%emt 0:00:16]} Kf6 {[%emt 0:00:29]} 31. h3 {[%emt 0:00:07]} Kg7 {[%emt 0:00:09]} 32. Ke2 {[%emt 0:00:09]} Kf6 {[%emt 0:00:26]} 33. Kd3 {[%emt 0:00:11]} Ke6 {[%emt 0:00:19]} 34. Rb7 {[%emt 0:00:29]} h5 {[%emt 0:00:53]} 35. Kc4 {[%emt 0:01:37]} h4 {[%emt 0:00:26]} 36. Rb8 {[%emt 0:02:01]} g5 {[%emt 0:00:24]} 37. Rc8 {[%emt 0:00:24]} f6 {[%emt 0:00:19]} 38. Rc6+ {[%emt 0:00:39]} Kf5 {[%emt 0:00:17]} 39. Kd3 {[%emt 0:01:57]} Kg6 {[%emt 0:00:38]} 40. Ke4 {[%emt 0:01:27]} Bd4 {[%emt 0:01:16]} 41. a4 {[%emt 0:00:20]} Bb6 {[%emt 0:00:29]} 42. Rxb6 {[%emt 0:00:16]} axb6 {[%emt 0:00:13]} 43. Kd5 {[%emt 0:00:18]} Kf5 {[%emt 0:00:30]} 44. Kc6 {[%emt 0:00:11]} Kf4 {[%emt 0:00:15]} 45. Kxb6 {[%emt 0:00:04]} Kg3 {[%emt 0:00:30]} 46. a5 {[%emt 0:00:03]} Kxg2 {[%emt 0:00:14]} 47. a6 {[%emt 0:00:08]} Kxh3 {[%emt 0:00:41]} 48. a7 {[%emt 0:00:08]} Kg3 {[%emt 0:00:11]} 49. a8=Q {[%emt 0:00:17]} h3 {[%emt 0:00:09]} 50. Qe4 {[%emt 0:00:46]} h2 {[%emt 0:00:43]} 51. Qg4+ {[%emt 0:00:41]} Kf2 {[%emt 0:00:10]} 52. Qh3 {[%emt 0:00:16]} Kg1 {[%emt 0:00:44]} 53. Qg3+ {[%emt 0:00:15]} Kh1 {[%emt 0:00:16]} 54. Qf2 {[%emt 0:00:10]} 1-0

[Event "DVM U10 2024"]
[Site "Duesseldorf"]
[Date "2024.12.29"]
[Round "7"]
[White "Michelson, Nathan"]
[Black "Sriram, Yashasri"]
[Result "1-0"]
[ECO "C02"]
[WhiteElo "1198"]
[BlackElo "1520"]
[Annotator "NA"]
[PlyCount "85"]
[EventDate "2024.12.23"]
[EventType "team-tourn"]
[EventRounds "7"]
[EventCountry "GER"]
[SourceTitle "playchess.com"]
[Source "ChessBase"]
[SourceQuality "1"]
[TimeControl "3300+5"]

1. e4 {[%emt 0:00:01]} e6 {[%emt 0:02:03]} 2. d4 {[%emt 0:00:03]} d5 {[%emt 0:00:05]} 3. e5 {[%emt 0:00:04]} c5 {[%emt 0:00:03]} 4. c3 {[%emt 0:00:05]} Nc6 {[%emt 0:00:04]} 5. Nf3 {[%emt 0:00:04]} Qb6 {[%emt 0:00:04]} 6. Be3 {[%emt 0:01:31]} Qxb2 {[%emt 0:01:03]} 7. Nbd2 {[%emt 0:00:26]} Qxc3 {[%emt 0:00:39]} 8. Rc1 {[%emt 0:00:19]} Qa5 {[%emt 0:00:12]} 9. dxc5 {[%emt 0:00:23]} Qc7 {[%emt 0:00:36]} 10. Bb5 {[%emt 0:00:45]} Bd7 {[%emt 0:00:17]} 11. O-O {[%emt 0:00:15]} Nge7 {[%emt 0:00:43]} 12. Nb3 {[%emt 0:00:41]} Nf5 {[%emt 0:00:14]} 13. Nbd4 {[%emt 0:01:29]} Nxe3 {[%emt 0:05:23]} 14. fxe3 {[%emt 0:00:08]} Nxd4 {[%emt 0:02:37]} 15. Nxd4 {[%emt 0:00:52]} Qxe5 {[%emt 0:00:57]} 16. Bxd7+ {[%emt 0:01:37]} Kxd7 {[%emt 0:01:39]} 17. Qa4+ {[%emt 0:00:35]} Kd8 {[%emt 0:01:36]} 18. c6 {[%emt 0:00:19]} Qxe3+ {[%emt 0:00:11]} 19. Kh1 {[%emt 0:00:06]} Rc8 {[%emt 0:02:18]} 20. Qxa7 {[%emt 0:03:05]} Qa3 {[%emt 0:06:27]} 21. cxb7 {[%emt 0:03:21]} Qxc1 {[%emt 0:03:02]} 22. bxc8=Q+ {[%emt 0:00:30]} Qxc8 {[%emt 0:00:00]} 23. Qb6+ {[%emt 0:00:32]} Ke8 {[%emt 0:00:10]} 24. a4 {[%emt 0:01:17]} Bc5 {[%emt 0:00:33]} 25. Qb5+ {[%emt 0:00:36]} Kf8 {[%emt 0:01:05]} 26. Nxe6+ {[%emt 0:00:32]} Qxe6 {[%emt 0:00:18]} 27. Qxc5+ {[%emt 0:00:06]} Ke8 {[%emt 0:00:41]} 28. a5 {[%emt 0:00:50]} Kd7 {[%emt 0:02:31]} 29. a6 {[%emt 0:00:43]} Ra8 {[%emt 0:01:17]} 30. Qb5+ {[%emt 0:00:20]} Ke7 {[%emt 0:01:58]} 31. Qb7+ {[%emt 0:00:13]} Kd6 {[%emt 0:00:37]} 32. Qxa8 {[%emt 0:01:05]} Qe2 {[%emt 0:00:39]} 33. Qd8+ {[%emt 0:00:41]} Kc5 {[%emt 0:00:20]} 34. Rc1+ {[%emt 0:00:28]} Kd4 {[%emt 0:00:09]} 35. a7 {[%emt 0:00:24]} Qd2 {[%emt 0:01:11]} 36. Qh4+ {[%emt 0:00:22]} Ke5 {[%emt 0:00:37]} 37. Qe1+ {[%emt 0:00:20]} Qxe1+ {[%emt 0:00:08]} 38. Rxe1+ {[%emt 0:00:06]} Kd6 {[%emt 0:00:05]} 39. a8=Q {[%emt 0:00:14]} d4 {[%emt 0:00:05]} 40. Qd8+ {[%emt 0:00:14]} Kc5 {[%emt 0:00:13]} 41. Rc1+ {[%emt 0:00:08]} Kb5 {[%emt 0:00:53]} 42. Qb8+ {[%emt 0:00:32]} Ka5 {[%emt 0:00:12]} 43. Ra1# {[%emt 0:00:04]} 1-0

[Event "DVM U10 2024"]
[Site "Duesseldorf"]
[Date "2024.12.29"]
[Round "7"]
[White "Zentgraf, Raphael"]
[Black "Hornych, Fridtjof"]
[Result "1-0"]
[ECO "D02"]
[WhiteElo "1175"]
[BlackElo "1053"]
[Annotator "NA"]
[PlyCount "125"]
[EventDate "2024.12.23"]
[EventType "team-tourn"]
[EventRounds "7"]
[EventCountry "GER"]
[SourceTitle "playchess.com"]
[Source "ChessBase"]
[SourceQuality "1"]
[TimeControl "3300+5"]

1. d4 {[%emt 0:00:05]} d5 {[%emt 0:00:06]} 2. Nf3 {[%emt 0:00:08]} Bf5 {[%emt 0:00:12]} 3. c3 {[%emt 0:00:23]} Nf6 {[%emt 0:00:16]} 4. Bf4 {[%emt 0:00:19]} e6 {[%emt 0:00:12]} 5. e3 {[%emt 0:00:09]} c5 {[%emt 0:00:59]} 6. Bd3 {[%emt 0:00:11]} Bxd3 {[%emt 0:00:35]} 7. Qxd3 {[%emt 0:00:09]} Nc6 {[%emt 0:00:16]} 8. Nbd2 {[%emt 0:00:24]} Qb6 {[%emt 0:00:45]} 9. Qc2 {[%emt 0:00:14]} Be7 {[%emt 0:01:07]} 10. Ne5 {[%emt 0:00:26]} Nxe5 {[%emt 0:01:09]} 11. Bxe5 {[%emt 0:00:09]} O-O {[%emt 0:01:32]} 12. Nf3 {[%emt 0:00:09]} h6 {[%emt 0:01:32]} 13. O-O {[%emt 0:00:29]} Rac8 {[%emt 0:00:12]} 14. Qd2 {[%emt 0:01:07]} Ne4 {[%emt 0:01:05]} 15. Qe2 {[%emt 0:01:15]} Bd6 {[%emt 0:02:47]} 16. Bxd6 {[%emt 0:01:58]} Qxd6 {[%emt 0:00:33]} 17. Ne5 {[%emt 0:00:18]} cxd4 {[%emt 0:01:01]} 18. exd4 {[%emt 0:00:10]} a5 {[%emt 0:06:10]} 19. f3 {[%emt 0:01:37]} Nf6 {[%emt 0:00:40]} 20. Rfc1 {[%emt 0:08:38]} Nd7 {[%emt 0:01:10]} 21. Nxd7 {[%emt 0:00:35]} Qxd7 {[%emt 0:00:16]} 22. Qe5 {[%emt 0:00:21]} Rfd8 {[%emt 0:00:50]} 23. Rc2 {[%emt 0:04:00]} Qd6 {[%emt 0:00:41]} 24. f4 {[%emt 0:00:34]} Qxe5 {[%emt 0:00:29]} 25. fxe5 {[%emt 0:00:10]} b5 {[%emt 0:00:10]} 26. a3 {[%emt 0:00:29]} b4 {[%emt 0:00:16]} 27. axb4 {[%emt 0:00:40]} axb4 {[%emt 0:03:12]} 28. Ra4 {[%emt 0:00:40]} bxc3 {[%emt 0:00:22]} 29. bxc3 {[%emt 0:00:40]} Ra8 {[%emt 0:00:40]} 30. Rca2 {[%emt 0:00:22]} Rxa4 {[%emt 0:00:19]} 31. Rxa4 {[%emt 0:00:14]} Rc8 {[%emt 0:00:37]} 32. Ra3 {[%emt 0:00:00]} Kh7 {[%emt 0:00:15]} 33. Kf2 {[%emt 0:00:05]} Kg6 {[%emt 0:00:16]} 34. Kf3 {[%emt 0:00:13]} Kf5 {[%emt 0:00:07]} 35. g4+ {[%emt 0:00:25]} Kg6 {[%emt 0:00:53]} 36. Kf4 {[%emt 0:00:10]} Kh7 {[%emt 0:00:34]} 37. h4 {[%emt 0:00:11]} g6 {[%emt 0:00:35]} 38. g5 {[%emt 0:00:16]} Rb8 {[%emt 0:01:00]} 39. Ra7 {[%emt 0:00:27]} hxg5+ {[%emt 0:00:14]} 40. Kxg5 {[%emt 0:00:36]} Kg7 {[%emt 0:00:19]} 41. h5 {[%emt 0:00:45]} gxh5 {[%emt 0:00:25]} 42. Ra3 {[%emt 0:01:12]} Rh8 {[%emt 0:00:01]} 43. Ra2 {[%emt 0:00:11]} h4 {[%emt 0:00:31]} 44. Rh2 {[%emt 0:00:12]} h3 {[%emt 0:00:11]} 45. Kg4 {[%emt 0:00:06]} Kg6 {[%emt 0:00:19]} 46. Rxh3 {[%emt 0:00:12]} Rxh3 {[%emt 0:00:14]} 47. Kxh3 {[%emt 0:00:04]} Kf5 {[%emt 0:00:24]} 48. Kh4 {[%emt 0:00:43]} Ke4 {[%emt 0:00:48]} 49. Kg5 {[%emt 0:00:06]} Kd3 {[%emt 0:00:17]} 50. Kf6 {[%emt 0:00:09]} Kxc3 {[%emt 0:00:13]} 51. Kxf7 {[%emt 0:00:06]} Kxd4 {[%emt 0:00:13]} 52. Kxe6 {[%emt 0:00:06]} Ke4 {[%emt 0:00:18]} 53. Kf6 {[%emt 0:00:08]} d4 {[%emt 0:00:10]} 54. e6 {[%emt 0:00:09]} d3 {[%emt 0:00:13]} 55. e7 {[%emt 0:00:07]} d2 {[%emt 0:00:08]} 56. e8=Q+ {[%emt 0:00:13]} Kf3 {[%emt 0:00:12]} 57. Qh5+ {[%emt 0:00:18]} Kf2 {[%emt 0:00:22]} 58. Qd1 {[%emt 0:00:10]} Ke3 {[%emt 0:00:14]} 59. Kg5 {[%emt 0:01:16]} Kd3 {[%emt 0:01:26]} 60. Kf4 {[%emt 0:00:00]} Kc3 {[%emt 0:01:06]} 61. Ke3 {[%emt 0:00:00]} Kb2 {[%emt 0:00:09]} 62. Qxd2+ {[%emt 0:00:00]} Kb1 {[%emt 0:00:13]} 63. Kd3 {[%emt 0:00:00]} 1-0

[Event "DVM U10 2024"]
[Site "Duesseldorf"]
[Date "2024.12.29"]
[Round "7"]
[White "Shandi, Hasan"]
[Black "Nikolic, Luka"]
[Result "1-0"]
[ECO "B12"]
[WhiteElo "1153"]
[BlackElo "1579"]
[Annotator "NA"]
[PlyCount "79"]
[EventDate "2024.12.23"]
[EventType "team-tourn"]
[EventRounds "7"]
[EventCountry "GER"]
[SourceTitle "playchess.com"]
[Source "ChessBase"]
[SourceQuality "1"]
[TimeControl "3300+5"]

1. e4 {[%emt 0:00:02]} c6 {[%emt 0:00:10]} 2. d4 {[%emt 0:00:06]} d5 {[%emt 0:00:11]} 3. e5 {[%emt 0:00:07]} Bf5 {[%emt 0:00:05]} 4. h4 {[%emt 0:00:14]} h5 {[%emt 0:00:11]} 5. Bd3 {[%emt 0:00:19]} Bxd3 {[%emt 0:00:13]} 6. Qxd3 {[%emt 0:00:08]} e6 {[%emt 0:00:16]} 7. Nf3 {[%emt 0:00:19]} Ne7 {[%emt 0:00:36]} 8. Bg5 {[%emt 0:00:19]} Qb6 {[%emt 0:00:30]} 9. Nbd2 {[%emt 0:00:59]} Nd7 {[%emt 0:01:39]} 10. O-O {[%emt 0:00:35]} O-O-O {[%emt 0:01:38]} 11. c4 {[%emt 0:00:21]} c5 {[%emt 0:01:46]} 12. cxd5 {[%emt 0:04:02]} cxd4 {[%emt 0:01:21]} 13. d6 {[%emt 0:01:56]} Nxe5 {[%emt 0:03:27]} 14. Nxe5 {[%emt 0:00:29]} f6 {[%emt 0:00:08]} 15. dxe7 {[%emt 0:01:27]} Bxe7 {[%emt 0:00:42]} 16. Nf7 {[%emt 0:00:20]} fxg5 {[%emt 0:00:31]} 17. Nxh8 {[%emt 0:03:36]} Rxh8 {[%emt 0:00:05]} 18. hxg5 {[%emt 0:01:19]} Bxg5 {[%emt 0:00:30]} 19. Ne4 {[%emt 0:00:25]} Bf4 {[%emt 0:00:38]} 20. Rfd1 {[%emt 0:02:02]} e5 {[%emt 0:01:35]} 21. g3 {[%emt 0:00:30]} Qg6 {[%emt 0:00:32]} 22. Kf1 {[%emt 0:06:52]} Bg5 {[%emt 0:06:14]} 23. Nd6+ {[%emt 0:01:12]} Qxd6 {[%emt 0:04:59]} 24. Qf5+ {[%emt 0:00:14]} Qd7 {[%emt 0:03:25]} 25. Qxg5 {[%emt 0:01:01]} Qh3+ {[%emt 0:01:18]} 26. Ke2 {[%emt 0:00:42]} Qg4+ {[%emt 0:01:23]} 27. Qxg4+ {[%emt 0:00:11]} hxg4 {[%emt 0:00:22]} 28. Kd3 {[%emt 0:00:47]} Kd7 {[%emt 0:01:01]} 29. Ke4 {[%emt 0:00:06]} Ke6 {[%emt 0:00:14]} 30. Rac1 {[%emt 0:00:08]} g5 {[%emt 0:00:42]} 31. Rc5 {[%emt 0:00:36]} d3 {[%emt 0:02:10]} 32. Rxd3 {[%emt 0:00:16]} Kf6 {[%emt 0:00:25]} 33. Rd6+ {[%emt 0:00:33]} Ke7 {[%emt 0:00:21]} 34. Kxe5 {[%emt 0:00:12]} b6 {[%emt 0:00:32]} 35. Rc7+ {[%emt 0:00:11]} Ke8 {[%emt 0:00:17]} 36. Rc8+ {[%emt 0:00:08]} Ke7 {[%emt 0:00:08]} 37. Rxh8 {[%emt 0:00:09]} a5 {[%emt 0:00:04]} 38. Rh7+ {[%emt 0:00:23]} Ke8 {[%emt 0:00:13]} 39. Ke6 {[%emt 0:00:04]} Kf8 {[%emt 0:00:16]} 40. Rd8# {[%emt 0:00:07]} 1-0

[Event "DVM U10 2024"]
[Site "Duesseldorf"]
[Date "2024.12.29"]
[Round "7"]
[White "Tolle, Jonathan"]
[Black "Peters, Leopold"]
[Result "1/2-1/2"]
[ECO "C02"]
[WhiteElo "1149"]
[BlackElo "1701"]
[Annotator "NA"]
[PlyCount "118"]
[EventDate "2024.12.23"]
[EventType "team-tourn"]
[EventRounds "7"]
[EventCountry "GER"]
[SourceTitle "playchess.com"]
[Source "ChessBase"]
[SourceQuality "1"]
[TimeControl "3300+5"]

1. e4 {[%emt 0:00:01]} e6 {[%emt 0:00:05]} 2. d4 {[%emt 0:00:03]} d5 {[%emt 0:00:09]} 3. e5 {[%emt 0:00:03]} c5 {[%emt 0:00:05]} 4. c3 {[%emt 0:00:03]} Nc6 {[%emt 0:00:05]} 5. Nf3 {[%emt 0:00:05]} Bd7 {[%emt 0:00:06]} 6. Be2 {[%emt 0:00:40]} Qb6 {[%emt 0:00:23]} 7. O-O {[%emt 0:02:04]} f6 {[%emt 0:00:26]} 8. Na3 {[%emt 0:04:39]} a6 {[%emt 0:01:33]} 9. Nc2 {[%emt 0:00:11]} fxe5 {[%emt 0:03:03]} 10. Nxe5 {[%emt 0:02:00]} Nxe5 {[%emt 0:01:51]} 11. dxe5 {[%emt 0:00:22]} Bb5 {[%emt 0:01:37]} 12. Rb1 {[%emt 0:01:58]} Bxe2 {[%emt 0:04:03]} 13. Qxe2 {[%emt 0:00:09]} Ne7 {[%emt 0:01:51]} 14. Bf4 {[%emt 0:00:58]} Ng6 {[%emt 0:00:44]} 15. Bg3 {[%emt 0:00:08]} O-O-O {[%emt 0:04:14]} 16. a3 {[%emt 0:01:45]} Be7 {[%emt 0:06:06]} 17. b4 {[%emt 0:00:55]} Qc7 {[%emt 0:03:57]} 18. Rbc1 {[%emt 0:02:11]} c4 {[%emt 0:02:12]} 19. Nd4 {[%emt 0:00:36]} Qd7 {[%emt 0:00:27]} 20. Qg4 {[%emt 0:09:05]} Rde8 {[%emt 0:02:03]} 21. Qe2 {[%emt 0:07:04]} Bd8 {[%emt 0:01:41]} 22. Rfd1 {[%emt 0:04:21]} h5 {[%emt 0:02:47]} 23. h3 {[%emt 0:00:09]} Bc7 {[%emt 0:03:19]} 24. Nf3 {[%emt 0:00:24]} Bd8 {[%emt 0:00:20]} 25. Qc2 {[%emt 0:00:57]} Qf7 {[%emt 0:00:44]} 26. a4 {[%emt 0:04:42]} b6 {[%emt 0:00:38]} 27. b5 {[%emt 0:00:25]} a5 {[%emt 0:00:15]} 28. Nd4 {[%emt 0:01:11]} Bc7 {[%emt 0:02:00]} 29. Re1 {[%emt 0:01:18]} Rhf8 {[%emt 0:00:55]} 30. Qe2 {[%emt 0:00:48]} Rh8 {[%emt 0:00:28]} 31. Nc6 {[%emt 0:03:42]} Ne7 {[%emt 0:00:21]} 32. Nd4 {[%emt 0:00:56]} Bd8 {[%emt 0:02:22]} 33. Bh4 {[%emt 0:00:27]} Nf5 {[%emt 0:01:23]} 34. Nxf5 {[%emt 0:00:16]} Qxf5 {[%emt 0:00:14]} 35. Bxd8 {[%emt 0:00:04]} Rxd8 {[%emt 0:00:28]} 36. Red1 {[%emt 0:00:25]} Rdf8 {[%emt 0:00:26]} 37. f3 {[%emt 0:00:01]} Qg5 {[%emt 0:00:35]} 38. Qf2 {[%emt 0:00:03]} Kc7 {[%emt 0:00:26]} 39. Re1 {[%emt 0:00:05]} Rf5 {[%emt 0:00:19]} 40. Qe2 {[%emt 0:00:07]} Rhf8 {[%emt 0:00:11]} 41. Kh2 {[%emt 0:00:04]} Qf4+ {[%emt 0:00:19]} 42. Kg1 {[%emt 0:00:06]} Qg5 {[%emt 0:00:12]} 43. Rc2 {[%emt 0:00:04]} Qf4 {[%emt 0:00:09]} 44. Rd2 {[%emt 0:00:05]} Rg5 {[%emt 0:00:16]} 45. Rc2 {[%emt 0:00:20]} Qxf3 {[%emt 0:00:08]} 46. Qxf3 {[%emt 0:00:02]} Rxf3 {[%emt 0:00:04]} 47. h4 {[%emt 0:00:13]} Rg4 {[%emt 0:00:17]} 48. Kh2 {[%emt 0:00:00]} Rxh4+ {[%emt 0:00:22]} 49. Kg1 {[%emt 0:00:00]} Rf5 {[%emt 0:00:08]} 50. Rf2 {[%emt 0:00:04]} Rhf4 {[%emt 0:00:10]} 51. Rxf4 {[%emt 0:00:02]} Rxf4 {[%emt 0:00:02]} 52. g3 {[%emt 0:00:03]} Rf3 {[%emt 0:00:02]} 53. Kg2 {[%emt 0:00:01]} Rxc3 {[%emt 0:00:01]} 54. Rd1 {[%emt 0:00:08]} Ra3 {[%emt 0:00:08]} 55. Rf1 {[%emt 0:00:01]} Rxa4 {[%emt 0:00:02]} 56. Rf7+ {[%emt 0:00:01]} Kd8 {[%emt 0:00:02]} 57. Rf8+ {[%emt 0:00:01]} Ke7 {[%emt 0:00:01]} 58. Rg8 {[%emt 0:00:09]} c3 {[%emt 0:00:02]} 59. Rc8 {[%emt 0:00:02]} Rc4 {[%emt 0:00:03]} 1/2-1/2